Cogmind - Beta 15 @@@ ROGUE MODE // 2025.06.01 @ 17:06:42 Player: Tibo Result: Destroyed by QI-ZQM(R) with Subdweller Machine Gun Performance ------------- Evolutions (0) 0 Regions Visited (3) 600 Robots Destroyed (12) 60 Value Destroyed (92) 92 Prototype IDs (0) 0 Alien Tech Used (0) 0 Bonus (0) 0 TOTAL SCORE: 752 Bonus ------- None Cogmind --------- Core Integrity 0/250 Matter 280/300 Energy 57/100 System Corruption 0% Temperature Cool (0) Movement Core (50) Location -10/Subcaves Parts ------- > --- POWER (1) -------- (None) > --- PROPULSION (2) --- (None) > --- UTILITY (2) ------ (None) > --- WEAPON (2) ------- Mining Laser > --- INVENTORY (5) ---- Aluminum Leg Compact Wheel Sensor Array Peak State ------------ > --- POWER ------------ Light Ion Engine > --- PROPULSION ------- Aluminum Leg Aluminum Leg > --- UTILITY ---------- Small Storage Unit Seismic Detector > --- WEAPON ----------- EM Pulse Gun Rocket Launcher > --- INVENTORY -------- Ion Engine Light Ion Engine Light Treads Light Treads Compact Wheel Sensor Array Medium Laser Mining Laser [Rating: 8] Favorites ----------- Power Light Ion Engine Engine Light Ion Engine Propulsion Aluminum Leg Treads Light Treads Leg Aluminum Leg Utility Small Storage Unit Device Seismic Detector Storage Small Storage Unit Weapon Medium Laser Energy Gun Medium Laser Launcher Rocket Launcher Special Weapon Mining Laser Build | -11 -10 -10 -10 ------- Run | Yrd Mat Min Sub Slots Evolved . | . . . . Power . | . . . . Propulsion . | . . . . Utility . | . . . . Weapon . | . . . . Parts Attached 14 | 8 2 1 3 Power 3 | 2 . . 1 Engine 3 | 2 . . 1 Core . | . . . . Reactor . | . . . . Propulsion 4 | 2 . . 2 Treads 2 | . . . 2 Leg 2 | 2 . . . Wheel . | . . . . Hover . | . . . . Flight . | . . . . Utility 2 | 2 . . . Device 1 | 1 . . . Storage 1 | 1 . . . Processor . | . . . . Hackware . | . . . . Protection . | . . . . Artifact . | . . . . Weapon 5 | 2 2 1 . Energy Gun 3 | 2 1 . . Energy Cannon . | . . . . Ballistic Gun . | . . . . Ballistic Cannon . | . . . . Launcher 1 | . . 1 . Special Weapon 1 | . 1 . . Impact Weapon . | . . . . Slashing Weapon . | . . . . Piercing Weapon . | . . . . Special Melee Weapon . | . . . . Unidentified Prototypes . | . . . . Parts Lost 8 | . . 1 7 Power 2 | . . . 2 Propulsion 3 | . . . 3 Utility 1 | . . . 1 Weapon 2 | . . 1 1 Highest Loss Streak 4 | . . 1 4 To Critical Strikes . | . . . . Average Backups 6 | 5 7 7 6 Power 1 | 1 1 2 1 Propulsion 3 | 3 3 3 2 Utility . | . . 1 1 Weapon 1 | 1 2 1 . Tool/Special . | . . . . Unused Backups 4 | . 2 . 2 Power 1 | . 1 . . Propulsion 2 | . 1 . 1 Utility 1 | . . . 1 Weapon . | . . . . Tool/Special . | . . . . Average Slot Usage (%) 95 | . 100 99 86 Engine 12 | . 14 14 9 Treads 2 | . . . 6 Leg 25 | . 28 28 19 Device 12 | . 14 14 9 Storage 13 | . 14 14 13 Energy Gun 19 | . 24 19 13 Launcher 6 | . . 8 12 Special Weapon 1 | . 3 . . Peak Build Rating 8 | 7 7 8 8 Average Rating 6 | 5 7 7 6 On Entrance 5 | . 7 7 8 Naked Turns 12 | . . . 12 Heaviest Build 15 | 15 13 15 15 Greatest Support 40 | 20 20 20 40 Greatest Overweight (x) 2 | 2 . . 2 Average Overweight (x) . | . . . . Largest Inventory Capacity 8 | 8 8 8 8 Average Capacity 7 | 7 8 8 7 Most Carried 8 | 8 8 8 7 Average Carried 6 | 5 7 7 6 Final Capacity 8 | 8 8 8 5 Final Carried 8 | 8 8 7 3 Class Distribution -------------------- 100% | Mutant Dominant Class ---------------- Mutant | -10/Materials Mutant | -10/Mines Mutant | -10/Subcaves Resources | -11 -10 -10 -10 ----------- Run | Yrd Mat Min Sub Matter Collected 356 | 280 27 19 30 Remotely . | . . . . Salvage Created 277 | 202 47 28 . Parts 16 | 10 3 3 . Haulers Intercepted . | . . . . Recyclers Shooed . | . . . . Parts Field Recycled . | . . . . Retrieved Matter . | . . . . Parts Self-Destructed . | . . . . Prevented . | . . . . Kills | -11 -10 -10 -10 ------- Run | Yrd Mat Min Sub Combat Hostiles Destroyed 4 | . 1 3 . Guns 2 | . . 2 . AOE 2 | . 1 1 . Classes Destroyed 5 | 3 2 . . Worker 2 | 2 . . . Tunneler 4 | 4 . . . Recycler 1 | 1 . . . Watcher 1 | . 1 . . Swarmer 4 | . 1 3 . Best Kill Streak 3 | 3 1 3 . Combat Bots Only 3 | . 1 3 . Max Kills in Single Turn 2 | 1 1 2 . Gunslinging . | . . . . Exploded 1 | . 1 1 . Melee . | . . . . Uniques/NPCs Destroyed . | . . . . Combat | -11 -10 -10 -10 -------- Run | Yrd Mat Min Sub Hostile Shots Fired 109 | . 10 5 94 Missed 41 | . 4 1 36 Hits 68 | . 6 4 58 Projectile 68 | . 6 4 58 Damage Taken 1104 | . 83 75 946 Core 263 | . . 8 255 Absorbed by Shields . | . . . . Core Remaining (%) 100 | 100 . . . Volleys Fired 35 | 19 13 2 1 Largest 2 | 2 2 2 1 Hottest 140 | 90 140 73 100 Shots Fired 68 | 38 26 3 1 Gun 63 | 38 23 2 . Cannon . | . . . . Launcher 1 | . . 1 . Special 4 | . 3 . 1 Kinetic . | . . . . Thermal 34 | 19 13 1 1 Explosive 1 | . . 1 . Electromagnetic 33 | 19 13 1 . Robot Hit Streak 9 | 9 4 6 . Robot Miss Streak 4 | 4 2 . . Penetration Max . | . . . . Secondary Targets . | . . . . Shots Hit Robots 31 | 23 6 2 . Core Hits 13 | 8 2 3 . Critical Kills . | . . . . Critical Parts Destroyed . | . . . . Critical Strikes 2 | 2 . . . Burn 1 | 1 . . . Corrupt 1 | 1 . . . Melee Attacks . | . . . . Impact . | . . . . Slashing . | . . . . Piercing . | . . . . Sneak Attacks . | . . . . Combat Hostiles . | . . . . Follow-up Attacks . | . . . . Damage Inflicted 534 | 327 90 117 . Guns 394 | 302 68 24 . Cannons . | . . . . Explosions 140 | 25 22 93 . Melee . | . . . . Ramming . | . . . . Kinetic . | . . . . Thermal 201 | 153 35 13 . Explosive 93 | . . 93 . Electromagnetic 240 | 174 55 11 . Impact . | . . . . Slashing . | . . . . Piercing . | . . . . Highest Corruption . | . . . . Average Corruption . | . . . . Corruption Purged . | . . . . Corruption Blocked . | . . . . Overload Shots . | . . . . Overflow Damage 4 | . . 4 . Projectiles . | . . . . Explosions 4 | . . 4 . Melee . | . . . . Knockbacks . | . . . . Impact . | . . . . Kinetic . | . . . . Secondary . | . . . . Self-Inflicted Damage 81 | . 32 49 . Shots 2 | . 1 1 . Rammed . | . . . . Targets Rammed . | . . . . Kicked . | . . . . Crushed . | . . . . Highest Temperature 192 | 192 172 12 . Average Temperature 67 | 64 75 7 . Received Heat Transfer 174 | . . . 174 Siege Activations . | . . . . Martial Activations . | . . . . Shielding Activations . | . . . . Robots Disrupted . | . . . . Combat Hostiles . | . . . . Robots Corrupted . | . . . . Combat Hostiles . | . . . . Parts Fried 1 | 1 . . . Impact Corruptions . | . . . . Robots Melted . | . . . . Combat Hostiles . | . . . . Parts Melted . | . . . . Heat Transferred 618 | 494 87 37 . Parts Sabotaged . | . . . . Parts Stolen . | . . . . Parts Stripped . | . . . . Power Chain Reactions 2 | 1 1 . . Alert | -11 -10 -10 -10 ------- Run | Yrd Mat Min Sub Maximum Alert Level . | . . . . Low Security (%) 100 | 100 100 100 . Level 1 . | . . . . Level 2 . | . . . . Level 3 . | . . . . Level 4 . | . . . . Level 5 . | . . . . High Security . | . . . . Max Security . | . . . . Peak Influence 69 | 10 53 69 . Initial . | . . . . Average 8 | 1 9 13 . Influence Increases 228 | 35 69 79 45 Destroy 0b10 Robot/C 80 | . 20 60 . Destroy 0b10 Robot/NC 40 | 35 5 . . Destroy Leader 12 | . 2 10 . Successful Hack 7 | . 7 . . Destroy Structure 14 | . 5 9 . Lose Combat Pursuer 75 | . 30 . 45 Influence Decreases 198 | 35 69 79 15 Time Decay 178 | 35 69 69 5 Lost Part 20 | . . 10 10 Squads Dispatched . | . . . . Investigation . | . . . . Extermination . | . . . . Reinforcement . | . . . . Assault . | . . . . Garrison . | . . . . Intercept . | . . . . Searches Triggered . | . . . . Construction Impeded . | . . . . Haulers Reinforced . | . . . . Active Scanning Responses . | . . . . Cargo Convoy Interrupts . | . . . . Stealth | -11 -10 -10 -10 --------- Run | Yrd Mat Min Sub Distress Signals 1 | . 1 . . Communications Jammed . | . . . . Distress Signals . | . . . . Times Spotted 24 | . 7 3 14 Peak Tracking Total 8 | . 3 3 8 Tactical Retreats 3 | . 1 . 2 Traps | -11 -10 -10 -10 ------- Run | Yrd Mat Min Sub Traps Triggered . | . . . . Indirectly . | . . . . Trap Hack Attempts . | . . . . Triggered . | . . . . Disarmed . | . . . . Reprogrammed . | . . . . Reused . | . . . . Traps Extracted . | . . . . Installed . | . . . . Triggered . | . . . . Machines | -11 -10 -10 -10 ---------- Run | Yrd Mat Min Sub Machines Disabled . | . . . . Max in Single Turn . | . . . . Machines Repaired . | . . . . Machines Dismantled . | . . . . Machines Sabotaged . | . . . . Overloaded Fab Kills . | . . . . Hacking | -11 -10 -10 -10 --------- Run | Yrd Mat Min Sub Machines Accessed 2 | . 2 . . Terminals 2 | . 2 . . Fabricators . | . . . . Repair Stations . | . . . . Recycling Units . | . . . . Scanalyzers . | . . . . Garrison Access . | . . . . Total Hacks 2 | . 2 . . Successful 2 | . 2 . . Failed . | . . . . Catastrophic . | . . . . Database Lockouts . | . . . . Manual . | . . . . Terminals 2 | . 2 . . Fabricators . | . . . . Repair Stations . | . . . . Recycling Units . | . . . . Scanalyzers . | . . . . Garrison Access . | . . . . Terminal Hacks 2 | . 2 . . Record 1 | . 1 . . Branch Access Points 1 | . 1 . . Fabricator Hacks . | . . . . Repair Station Hacks . | . . . . Recycling Unit Hacks . | . . . . Scanalyzer . | . . . . Garrison Access Hacks . | . . . . Unauthorized Hacks . | . . . . Terminals . | . . . . Fabricators . | . . . . Repair Stations . | . . . . Recycling Units . | . . . . Scanalyzers . | . . . . Garrison Access . | . . . . Data Cores Recovered . | . . . . Used . | . . . . Hacking Detections 1 | . 1 . . Full Trace Events . | . . . . Feedback Events . | . . . . Feedback Blocked . | . . . . Robot Schematics Acquired . | . . . . Robots Built . | . . . . Authchips . | . . . . Time . | . . . . Total Robot Build Rating . | . . . . Part Schematics Acquired . | . . . . Parts Built . | . . . . Authchips . | . . . . Time . | . . . . Total Part Build Rating . | . . . . Parts Repaired . | . . . . Time . | . . . . Parts Recycled . | . . . . Recycled Matter . | . . . . Retrieved Matter . | . . . . Retrieved Components . | . . . . Parts Scanalyzed . | . . . . Part Schematics Acquired . | . . . . Parts Damaged . | . . . . Bothacking | -11 -10 -10 -10 ------------ Run | Yrd Mat Min Sub Used RIF Installer . | . . . . Robots Hacked . | . . . . Non-combat . | . . . . Combat . | . . . . Robot Hacks Applied . | . . . . Relay Couplers Released . | . . . . Fabnet Peak Effective % . | . . . . Robots Rewired . | . . . . Allies Hacked . | . . . . Hacks Repelled . | . . . . Allies | -11 -10 -10 -10 -------- Run | Yrd Mat Min Sub Total Allies . | . . . . Largest Group . | . . . . Highest-Rated Group . | . . . . Highest-Rated Ally . | . . . . Total Orders . | . . . . Ally Attacks . | . . . . Total Damage . | . . . . Kills . | . . . . Allies Corrupted . | . . . . Allies Melted . | . . . . Intel | -11 -10 -10 -10 ------- Run | Yrd Mat Min Sub Active Infowar (turns) 1013 | 105 353 359 196 Seismic 1013 | 105 353 359 196 Robot Analysis Total . | . . . . Derelict Logs Recovered 1 | . . 1 . Drone Launches . | . . . . Drone Recoveries . | . . . . Exploration | -11 -10 -10 -10 ------------- Run | Yrd Mat Min Sub Turns Passed 1222 | 215 353 359 295 Spaces Moved 821 | 116 188 285 232 Core 49 | 21 . . 28 Treads 40 | . . . 40 Legs 732 | 95 188 285 164 Wheels . | . . . . Hover . | . . . . Flight . | . . . . Fastest Speed 50 | 50 120 120 50 Average Speed 119 | 115 120 120 119 Slowest Speed 190 | 150 120 120 190 Overloaded Moves . | . . . . Propulsion Burnouts . | . . . . Robots Hopped . | . . . . Potential Cave-ins . | . . . . Cave-ins Triggered . | . . . . Exploration Rate (%) 21 | 4 23 36 24 Regions Visited 3 Branch Regions 2 Pre-discovered Areas 1 | . . . 1 Known Exits Taken 1 | . 1 . . Unknown Exits Taken 2 | 1 . 1 . Scrap Searched . | . . . . Spaces Dug 1 | . 1 . . Terrain Destroyed 19 | 5 4 10 . Melee . | . . . . Projectile 2 | . 2 . . AOE 17 | 5 2 10 . Terrain Rammed . | . . . . Walls Destroyed . | . . . . Machines Disabled . | . . . . Actions | -11 -10 -10 -10 --------- Run | Yrd Mat Min Sub Total 985 | 156 282 299 248 Wait 98 | 6 74 8 10 Move 818 | 115 187 284 232 Hop . | . . . . Pick Up 10 | 7 2 1 . Fast Attach 8 | 8 . . . Attach 5 | . . 2 3 Detach 1 | 1 . . . Swap 6 | . 4 1 1 Drop 4 | . 2 1 1 Fire 35 | 19 13 2 1 Melee . | . . . . Ram . | . . . . Kick . | . . . . Crush . | . . . . Escape Stasis . | . . . . Rewire . | . . . . Trap . | . . . . Miscellaneous . | . . . . Route ------- -11/Scrapyard -10/Materials (discovered 2 exits: *Min / [*Sub]) -10/Mines (discovered 2 exits: [*Mat] / [*Sub]) -10/Subcaves (discovered 2 exits: [*Mat] / [*Rec]) History --------- Turn | Location | Event 19 | -11/Scrapyard | Discovered new exit (range 15) 216 | -11/Scrapyard | Entered Materials 319 | -10/Materials | Build established: Mutant 324 | -10/Materials | Identified exit to Mines 489 | -10/Materials | Discovered new exit (range 6) 569 | -10/Materials | Entered Mines 578 | -10/Mines | Received a Rocket Launcher from a helpful Derelict 734 | -10/Mines | Learned Materials emergency access door positions 843 | -10/Mines | Discovered new exit (range 10) 861 | -10/Mines | Discovered new exit (range 6) 928 | -10/Mines | Entered Subcaves 929 | -10/Subcaves | Approached by a straggling Scientist 1142 | -10/Subcaves | Core integrity fell below 50% 1168 | -10/Subcaves | Learned location of Zion (-6) 1168 | -10/Subcaves | Met a Zionite searching for "candidates" 1174 | -10/Subcaves | Lost 4 parts (2p1n1u) 1202 | -10/Subcaves | Discovered new exit (range 15) 1206 | -10/Subcaves | Core integrity fell below 20% 1207 | -10/Subcaves | Released all parts (2) 1214 | -10/Subcaves | Discovered new exit (range 13) 1223 | -10/Subcaves | Destroyed by QI-ZQM(R) with Subdweller Machine Gun Last Messages --------------- 01124_ Dropped Ion Engine. 01124_ Seismic Detector destroyed. 01125_ Aluminum Leg destroyed. 01136_ CP-QB3(z): "She is not going to be happy we haven't found any suitable candidates yet." 01143_ Lgt. Ion Engine destroyed. 01168_ CP-QB3(z): "Hey you! It's really dangerous down here, I feel that you could die at any moment. For your health and safety might I suggest a trip to Zion?" World map updated: -6/Zion. 01184_ CP-QB3(z) destroyed. 01192_ Subatomizers dissect the Aluminum Leg. 01193_ Rocket Launcher destroyed. 01202_ Lgt. Treads destroyed. 01202_ EXIT=FOUND 01204_ Lgt. Treads destroyed. 01206_ S-10 Pest destroyed. 01207_ Released Med. Laser. 01207_ Released Sml. Storage Unit. 01214_ EXIT=FOUND 01217_ 4E-S2J(u) builds Twisted Machinery. Map ----- +----------------------------------------------------+ | ?????????????????????????????????????####????## ## | | ????????????????????????????????????## ##??## # | | ????????????????????????????????????# #?## | | ?????????????????????????????????????# ### | | ?????????????????????????????????????# | | ????????????????????????????????????## * | | ????????????????????????????????????# ## | | ????????????????????????????????????# ####### | | ????????????????????????????????????###?????# | | ??????????????????????????????????????#?????## % | | ????????????????????????????????????##